fUSD/lending_fUSD_20260625
["ID","MTS","AMOUNT","RATE_DAILY","PERIOD"]
[426435550,1782383693000,-5000.0,0.00036758,10]
[426435557,1782383693000,-1000.0,0.00036759,2]
[426435552,1782383693000,-1000.0,0.00036759,2]
[426435556,1782383693000,-1000.0,0.00036759,2]
[426435553,1782383693000,-1000.0,0.00036759,2]
[426435554,1782383693000,-1000.0,0.00036759,2]
[426435555,1782383693000,-1000.0,0.00036759,2]
[426435558,1782383693000,-1000.0,0.00036759,2]
[426435551,1782383693000,-1000.0,0.00036759,2]
[426435559,1782383693000,-1000.0,0.00036759,2]
[426435536,1782383693000,-234.32,0.00036718,120]
[426435546,1782383693000,-849.21,0.00036742,14]
[426435528,1782383693000,-5000.0,0.00036691,10]
[426435522,1782383693000,-185.94,0.00036685,120]
[426435534,1782383693000,-194.93,0.00036718,120]
[426435560,1782383693000,-1000.0,0.00036759,2]
[426435508,1782383693000,-150.0,0.0003668,2]
[426435507,1782383693000,-200.0,0.00036672,60]
[426435514,1782383693000,-259.33,0.00036685,120]
[426435510,1782383693000,-1434.16,0.00036685,120]
[426435509,1782383693000,-2000.0,0.00036685,120]
[426435511,1782383693000,-472.07,0.00036685,120]
[426435513,1782383693000,-275.83,0.00036685,120]
[426435512,1782383693000,-356.01,0.00036685,120]
[426435516,1782383693000,-189.82,0.00036685,120]
[426435515,1782383693000,-173.79,0.00036685,120]
[426435517,1782383693000,-182.49,0.00036685,120]
[426435533,1782383693000,-243.25666666,0.00036712,60]
[426435519,1782383693000,-264.31,0.00036685,120]
[426435520,1782383693000,-174.32,0.00036685,120]
[426435524,1782383693000,-186.92,0.00036685,120]
[426435523,1782383693000,-364.78,0.00036685,120]
[426435521,1782383693000,-186.27,0.00036685,120]
[426435525,1782383693000,-168.8,0.00036685,120]
[426435527,1782383693000,-242.48,0.00036685,120]
[426435526,1782383693000,-343.22,0.00036685,120]
[426435535,1782383693000,-216.75,0.00036718,120]
[426435530,1782383693000,-5000.0,0.00036701,30]
[426435529,1782383693000,-499.99,0.000367,120]
[426435532,1782383693000,-1500.0,0.0003671,2]
[426435537,1782383693000,-150.0,0.00036718,120]
[426435518,1782383693000,-279.41,0.00036685,120]
[426435569,1782383693000,-1000.0,0.00036759,2]
[426435580,1782383693000,-1000.0,0.00036759,2]
[426435562,1782383693000,-1000.0,0.00036759,2]
[426435604,1782383693000,-5000.0,0.00036764,10]
[426435596,1782383693000,-1000.0,0.00036759,2]
[426435606,1782383693000,-347.578835,0.0003678,120]
[426435594,1782383693000,-1000.0,0.00036759,2]
[426435600,1782383693000,-1000.0,0.00036759,2]
[426435598,1782383693000,-1000.0,0.00036759,2]
[426435597,1782383693000,-1000.0,0.00036759,2]
[426435602,1782383693000,-4600.76943412,0.0003676,120]
[426435566,1782383693000,-1000.0,0.00036759,2]
[426435603,1782383693000,-382.42696094,0.00036764,30]
[426435599,1782383693000,-1000.0,0.00036759,2]
[426435608,1782383693000,-5000.0,0.00036789,30]
[426435607,1782383693000,-652.99,0.0003678,120]
[426435610,1782383693000,-330528.96712831,0.000368,120]
[426435617,1782383693000,-1034.59967134,0.00036809,30]
[426435616,1782383693000,-545.80031875,0.00036801,60]
[426435609,1782383693000,-1645.44271954,0.000368,2]
[426435615,1782383693000,-224.89280016,0.000368,120]
[426435618,1782383693000,-5000.0,0.00036811,10]
[426435611,1782383693000,-195071.0,0.000368,30]
[426435619,1782383693000,-5130.0,0.00036814,10]
[426435613,1782383693000,-817.91750006,0.000368,90]
[426435612,1782383693000,-5466.95786966,0.000368,120]
[426435614,1782383693000,-130903.90469884,0.000368,30]
[426435620,1782383693000,-434.12,0.00036818,3]
[426435605,1782383693000,-157.27721843,0.00036775,30]
[426435595,1782383693000,-1000.0,0.00036759,2]
[426435601,1782383693000,-4852.29,0.0003676,10]
[426435590,1782383693000,-1000.0,0.00036759,2]
[426435563,1782383693000,-1000.0,0.00036759,2]
[426435564,1782383693000,-1000.0,0.00036759,2]
[426435589,1782383693000,-1000.0,0.00036759,2]
[426435567,1782383693000,-1000.0,0.00036759,2]
[426435565,1782383693000,-1000.0,0.00036759,2]
[426435571,1782383693000,-1000.0,0.00036759,2]
[426435581,1782383693000,-1000.0,0.00036759,2]
[426435570,1782383693000,-1000.0,0.00036759,2]
[426435574,1782383693000,-1000.0,0.00036759,2]
[426435577,1782383693000,-1000.0,0.00036759,2]
[426435576,1782383693000,-1000.0,0.00036759,2]
[426435579,1782383693000,-1000.0,0.00036759,2]
[426435575,1782383693000,-1000.0,0.00036759,2]
[426435568,1782383693000,-1000.0,0.00036759,2]
[426435573,1782383693000,-1000.0,0.00036759,2]
[426435572,1782383693000,-1000.0,0.00036759,2]
[426435591,1782383693000,-1000.0,0.00036759,2]
[426435592,1782383693000,-1000.0,0.00036759,2]
[426435583,1782383693000,-1000.0,0.00036759,2]
[426435587,1782383693000,-1000.0,0.00036759,2]
[426435593,1782383693000,-1000.0,0.00036759,2]
[426435585,1782383693000,-1000.0,0.00036759,2]
[426435588,1782383693000,-1000.0,0.00036759,2]
[426435586,1782383693000,-660.0,0.00036759,2]
[426435582,1782383693000,-1000.0,0.00036759,2]
[426435578,1782383693000,-1000.0,0.00036759,2]
[426435584,1782383693000,-1000.0,0.00036759,2]
[426435633,1782383694000,-21028.35,0.000369,120]
[426435643,1782383694000,-500.9281581,0.00036922,30]
[426435640,1782383694000,-241.49,0.000369,120]
[426435637,1782383694000,-462.1,0.000369,120]
[426435639,1782383694000,-2510.93,0.000369,10]
[426435638,1782383694000,-66295.7,0.000369,120]
[426435636,1782383694000,-877657.02128944,0.000369,30]
[426435634,1782383694000,-516.7949,0.000369,60]
[426435635,1782383694000,-5000.0,0.000369,120]
[426435632,1782383694000,-204.0,0.0003689,30]
[426435626,1782383694000,-5297.55146797,0.00036852,30]
[426435628,1782383694000,-5000.0,0.00036877,30]
[426435630,1782383694000,-20000.00571859,0.0003688,120]
[426435629,1782383694000,-151.94798,0.00036877,120]
[426435624,1782383694000,-158.37237088,0.00036835,7]
[426435625,1782383694000,-5000.0,0.00036842,7]
[426435622,1782383694000,-675.0,0.00036829,11]
[426435623,1782383694000,-5000.0,0.00036833,30]
[426435631,1782383694000,-2000.0,0.00036881,120]
[426435621,1782383694000,-1842.39,0.00036818,30]
[426435627,1782383694000,-614.79,0.00036861,7]
[426435642,1782383694000,-5000.0,0.00036921,30]
[426435644,1782383694000,-2510.92,0.00036924,10]
[426435641,1782383694000,-5000.0,0.0003692,10]
[426435645,1782383694000,-161.369381,0.00036938,113]
[426435665,1782383694000,-645.12277682,0.00037,30]
[426435666,1782383694000,-7986.89745272,0.00037,30]
[426435664,1782383694000,-60819.86711342,0.00037,30]
[426435662,1782383694000,-150.0,0.00037,2]
[426435661,1782383694000,-450.0,0.00037,14]
[426435660,1782383694000,-650.0,0.00037,30]
[426435659,1782383694000,-2747.0,0.00037,7]
[426435658,1782383694000,-4500.0,0.00037,2]
[426435663,1782383694000,-10000.0,0.00037,120]
[426435657,1782383694000,-169.19170302,0.00037,2]
[426435655,1782383694000,-111881.35202019,0.00037,30]
[426435647,1782383694000,-5000.0,0.00036965,30]
[426435649,1782383694000,-463.29098379,0.00036986,90]
[426435651,1782383694000,-1021.69,0.00036998,120]
[426435650,1782383694000,-155.76975225,0.00036986,2]
[426435656,1782383694000,-365.0,0.00037,2]
[426435652,1782383694000,-50000.0,0.00037,19]
[426435648,1782383694000,-300.0,0.00036979,2]
[426435653,1782383694000,-50000.0,0.00037,28]
[426435654,1782383694000,-169.73,0.00037,7]
[426435646,1782383694000,-25000.0,0.00036962,10]
[426435668,1782383695000,168.5,0.00030718,30]
[426435667,1782383695000,168.5,0.00029931,30]
[426435672,1782383696000,152.2,0.00030606,30]
[426435671,1782383696000,152.2,0.00029931,30]
[426435670,1782383696000,187.98,0.00029931,30]
[426435669,1782383696000,161.92,0.00030561,30]
[426435673,1782383698000,187.99,0.00029931,30]
[426435674,1782383698000,152.22,0.00029931,30]
[426435675,1782383699000,3917.17793583,0.00013467,2]
[426435676,1782383699000,2068.64612484,0.00013467,2]
[426435677,1782383700000,150.0,0.00013833,2]
[426435679,1782383700000,160.0,0.00013467,2]
[426435678,1782383700000,835.245623,7.945e-05,2]
[426435680,1782383701000,168.5,0.00029931,30]
[426435681,1782383703000,168.5,0.00029931,30]
[426435682,1782383726000,168.5,0.00029931,30]
[426435683,1782383789000,168.5,0.00029931,30]
[426435686,1782383825000,705.5,0.00013511,2]
[426435685,1782383825000,705.5,0.00013482,2]
[426435684,1782383825000,705.5,0.00013453,2]
[426435687,1782383826000,705.5,0.0001354,2]
[426435690,1782383826000,705.5,0.00013626,2]
[426435689,1782383826000,705.5,0.00013597,2]
[426435688,1782383826000,705.5,0.00013569,2]
[426435691,1782383827000,705.5,0.00013655,2]
[426435692,1782383828000,705.5,0.00013684,2]
[426435694,1782383829000,705.5,0.00013742,2]
[426435693,1782383829000,705.5,0.00013713,2]
[426435695,1782383830000,705.5,0.00013771,2]
[426435696,1782383831000,705.5,0.000138,2]
[426435697,1782383832000,705.5,0.00013829,2]
[426435699,1782383833000,705.5,0.00013886,2]
[426435698,1782383833000,705.5,0.00013858,2]
[426435700,1782383834000,705.5,0.00013915,2]
[426435701,1782383835000,705.5,0.00013944,2]
[426435702,1782383836000,705.5,0.00013973,2]
[426435703,1782383853000,168.5,0.00029931,30]
[426435704,1782383914000,769.45,0.00030685,120]
[426435705,1782383916000,3598.714034,0.00013932,2]
[426435706,1782383949000,182.0,0.0003,120]
[426435707,1782383951000,705.28395446,0.00013467,2]
[426435708,1782384082000,150.45306755,0.0001396,2]
[426435711,1782384181000,200.0,0.00013699,2]
[426435712,1782384251000,349.94658439,0.00013904,2]
[426435715,1782384416000,171.2,0.00010622,2]
[426435717,1782384557000,344.96664356,0.00013986,2]
[426435718,1782384569000,497.58896636,0.00013989,2]
[426435719,1782384589000,1364.4005627,0.00013989,2]
[426435720,1782384617000,166.66,0.00012689,2]
[426435724,1782384618000,166.66,0.00013758,2]
[426435723,1782384618000,166.66,0.0001349,2]
[426435722,1782384618000,166.66,0.00013223,2]
[426435721,1782384618000,166.66,0.00012956,2]
[426435728,1782384631000,-600.0,0.00014003,2]
[426435725,1782384631000,-327.4028265,0.00014002,2]
[426435727,1782384631000,-300.0,0.00014002,2]
[426435736,1782384631000,-1123.75610692,0.00014067,2]
[426435735,1782384631000,-306782.71578823,0.00014067,2]
[426435726,1782384631000,-378.0971735,0.00014002,2]
[426435729,1782384631000,-300.0,0.00014003,2]
[426435731,1782384631000,-600.0,0.00014005,2]
[426435733,1782384631000,-705.5,0.00014031,2]
[426435732,1782384631000,-166.66,0.00014025,2]
[426435734,1782384631000,-705.5,0.0001406,2]
[426435737,1782384631000,-113950.00711799,0.00014067,2]
[426435739,1782384631000,-68022.17002331,0.00014067,2]
[426435730,1782384631000,-600.0,0.00014005,2]
[426435783,1782384637000,-4491.1630406,0.00014067,2]
[426435873,1782384638000,-705.5,0.00014782,2]
[426435871,1782384638000,-705.5,0.00014753,2]
[426435869,1782384638000,-705.5,0.00014725,2]
[426435867,1782384638000,-351.5,0.00014702,2]
[426435865,1782384638000,-705.5,0.00014696,2]
[426435829,1782384638000,-152.0,0.00014267,2]
[426435830,1782384638000,-152.0,0.00014267,2]
[426435851,1782384638000,-705.5,0.00014493,2]
[426435847,1782384638000,-705.5,0.00014436,2]
[426435875,1782384638000,-705.5,0.00014811,2]
[426435833,1782384638000,-152.0,0.00014267,2]
[426435837,1782384638000,-705.5,0.00014291,2]
[426435835,1782384638000,-279.42353687,0.00014267,2]
[426435855,1782384638000,-705.5,0.00014551,2]
[426435877,1782384638000,-705.5,0.0001484,2]
[426435879,1782384638000,-705.5,0.00014869,2]
[426435894,1782384638000,-300.0,0.00015402,2]
[426435896,1782384638000,-300.0,0.00015402,2]
[426435902,1782384638000,-404.61644,0.00016038,2]
[426435892,1782384638000,-600.0,0.00015402,2]
[426435886,1782384638000,-600.0,0.00015402,2]
[426435888,1782384638000,-300.0,0.00015402,2]
[426435853,1782384638000,-705.5,0.00014522,2]
[426435890,1782384638000,-500.0,0.00015402,2]
[426435881,1782384638000,-25000.0,0.000149,3]
[426435863,1782384638000,-705.5,0.00014667,2]
[426435861,1782384638000,-705.5,0.00014638,2]
[426435859,1782384638000,-705.5,0.00014609,2]
[426435849,1782384638000,-705.5,0.00014464,2]
[426435857,1782384638000,-705.5,0.0001458,2]
[426435883,1782384638000,-219.49438601,0.00014925,2]
[426435827,1782384638000,-348.35851751,0.00014267,2]
[426435839,1782384638000,-705.5,0.0001432,2]
[426435845,1782384638000,-705.5,0.00014407,2]
[426435900,1782384638000,-198.95181052,0.00016,2]
[426435785,1782384638000,-705.5,0.00014089,2]
[426435795,1782384638000,-705.5,0.00014204,2]
[426435797,1782384638000,-705.5,0.00014233,2]
[426435786,1782384638000,-705.5,0.00014118,2]
[426435788,1782384638000,-150.0,0.00014166,2]
[426435801,1782384638000,-180.616,0.00014262,2]
[426435799,1782384638000,-150.0,0.00014261,2]
[426435784,1782384638000,-1005630.18792295,0.00014067,2]
[426435787,1782384638000,-705.5,0.00014147,2]
[426435789,1782384638000,-5615.4629,0.00014167,2]
[426435791,1782384638000,-404.61644005,0.00014167,2]
[426435793,1782384638000,-705.5,0.00014175,2]
[426435790,1782384638000,-2500.0,0.00014167,2]
[426435843,1782384638000,-705.5,0.00014378,2]
[426435803,1782384638000,-1780.658,0.00014262,2]
[426435805,1782384638000,-705.5,0.00014262,2]
[426435810,1782384638000,-500.0,0.00014264,2]
[426435814,1782384638000,-232.66219014,0.00014264,2]
[426435812,1782384638000,-500.0,0.00014264,2]
[426435809,1782384638000,-500.0,0.00014264,2]
[426435818,1782384638000,-348.35851751,0.00014267,2]
[426435825,1782384638000,-348.35851751,0.00014267,2]
[426435824,1782384638000,-348.35851751,0.00014267,2]
[426435823,1782384638000,-348.35851751,0.00014267,2]
[426435816,1782384638000,-348.35851751,0.00014267,2]
[426435820,1782384638000,-348.35851751,0.00014267,2]
[426435822,1782384638000,-348.35851751,0.00014267,2]
[426435826,1782384638000,-348.35851751,0.00014267,2]
[426435841,1782384638000,-705.5,0.00014349,2]
[426435807,1782384638000,-500.0,0.00014264,2]
[426435898,1782384638000,-153.85,0.00015711,2]
[426435921,1782384638000,-441.52752205,0.000185,2]
[426435906,1782384638000,-150.99,0.00016922,2]
[426435985,1782384638000,-151.0,0.00021501,2]
[426435979,1782384638000,-151.0,0.00021501,2]
[426435981,1782384638000,-151.0,0.00021501,2]
[426435988,1782384638000,-151.0,0.00021501,2]
[426435990,1782384638000,-404.61644,0.00021651,2]
[426435995,1782384638000,-497.58896629,0.00022951,2]
[426435994,1782384638000,-1819.66,0.00022124,2]
[426435993,1782384638000,-1819.66,0.00022124,2]
[426435992,1782384638000,-5000.0,0.00021918,2]
[426435998,1782384638000,-404.61644,0.00023523,2]
[426436012,1782384638000,-178.76964299,0.00023793,2]
[426436003,1782384638000,-183.99619535,0.00023793,2]
[426436000,1782384638000,-182.67059803,0.00023793,2]
[426435996,1782384638000,-1778.59,0.00023506,7]
[426435977,1782384638000,-151.0,0.00021501,2]
[426436004,1782384638000,-178.46993408,0.00023793,2]
[426436006,1782384638000,-170.61969248,0.00023793,2]
[426436008,1782384638000,-165.39695493,0.00023793,2]
[426436014,1782384638000,-184.65094879,0.00023793,2]
[426436016,1782384638000,-196.04866834,0.00023793,2]
[426436018,1782384638000,-169.35861412,0.00023793,2]
[426436022,1782384638000,-168.96056574,0.00023803,2]
[426436020,1782384638000,-170.41171031,0.00023803,2]
[426436024,1782384638000,-1565.0,0.00023867,5]
[426436034,1782384638000,-1230.0,0.00024458,2]
[426436026,1782384638000,-1260.0,0.00023867,5]
[426436028,1782384638000,-3562.0,0.00024458,2]
[426436032,1782384638000,-383.0,0.00024458,2]
[426435904,1782384638000,-9999.99,0.00016922,2]
[426436036,1782384638000,-216.0,0.00024458,2]
[426436010,1782384638000,-175.37896928,0.00023793,2]
[426435983,1782384638000,-151.0,0.00021501,2]
[426436030,1782384638000,-1277.0,0.00024458,2]
[426435971,1782384638000,-151.0,0.00021501,2]
[426435975,1782384638000,-151.0,0.00021501,2]
[426435919,1782384638000,-231.56754967,0.000184,2]
[426435923,1782384638000,-441.52752205,0.000187,2]
[426435925,1782384638000,-230.72478603,0.00019038,2]
[426435927,1782384638000,-404.61644,0.0001978,2]
[426435917,1782384638000,-441.52752205,0.000184,2]
[426435915,1782384638000,-441.52752205,0.000182,2]
[426435931,1782384638000,-249.26399985,0.00020782,2]
[426435929,1782384638000,-497.58896629,0.00019964,2]
[426435913,1782384638000,-441.52752205,0.00018,2]
[426435933,1782384638000,-165.813,0.00021458,2]
[426435935,1782384638000,-3562.0,0.00021458,2]
[426435942,1782384638000,-1230.0,0.00021458,2]
[426435940,1782384638000,-383.0,0.00021458,2]
[426435911,1782384638000,-404.61644,0.00017909,2]
[426435938,1782384638000,-1277.0,0.00021458,2]
[426435965,1782384638000,-151.0,0.00021501,2]
[426435944,1782384638000,-216.0,0.00021458,2]
[426435973,1782384638000,-151.0,0.00021501,2]
[426435969,1782384638000,-151.0,0.00021501,2]
[426435963,1782384638000,-151.0,0.00021501,2]
[426435967,1782384638000,-151.0,0.00021501,2]
[426435961,1782384638000,-151.0,0.00021501,2]
[426435909,1782384638000,-497.58896629,0.00016976,2]
[426435953,1782384638000,-151.0,0.00021501,2]
[426435951,1782384638000,-151.0,0.00021501,2]
[426435948,1782384638000,-151.0,0.00021501,2]
[426435946,1782384638000,-935.0,0.00021458,2]
[426435957,1782384638000,-151.0,0.00021501,2]
[426435955,1782384638000,-151.0,0.00021501,2]
[426435959,1782384638000,-151.0,0.00021501,2]
[426436110,1782384639000,-526.13690783,0.00025898,2]
[426436112,1782384639000,-536.30892897,0.00025898,2]
[426436109,1782384639000,-241.824005,0.00025898,2]
[426436114,1782384639000,-244.35875289,0.00025898,2]
[426436100,1782384639000,-548.01179408,0.00025898,2]
[426436102,1782384639000,-535.40980223,0.00025898,2]
[426436040,1782384639000,-1000.0,0.00024658,2]
[426436099,1782384639000,-220.87614427,0.00025898,2]
[426436097,1782384639000,-412.40573545,0.00025898,2]
[426436098,1782384639000,-214.9773431,0.00025898,2]
[426436096,1782384639000,-233.65996833,0.00025808,2]
[426436107,1782384639000,-200.28152374,0.00025898,2]
[426436116,1782384639000,-308.75046222,0.00025898,2]
[426436124,1782384639000,-209.11123862,0.00025898,2]
[426436122,1782384639000,-201.07983396,0.00025898,2]
[426436118,1782384639000,-396.34489016,0.00025898,2]
[426436125,1782384639000,-277.24712806,0.00025898,2]
[426436120,1782384639000,-229.27873098,0.00025898,2]
[426436123,1782384639000,-217.3265159,0.00025898,2]
[426436127,1782384639000,-588.14600503,0.00025898,2]
[426436136,1782384639000,-211.12821887,0.00025908,2]
[426436126,1782384639000,-401.09934652,0.00025898,2]
[426436137,1782384639000,-422.11257627,0.00025908,2]
[426436129,1782384639000,-511.23513092,0.00025908,2]
[426436134,1782384639000,-182.71763444,0.00025908,2]
[426436130,1782384639000,-203.03037623,0.00025908,2]
[426436094,1782384639000,-384.86010138,0.00025808,2]
[426436138,1782384639000,-506.88169721,0.00025908,2]
[426436119,1782384639000,-243.70122352,0.00025898,2]
[426436121,1782384639000,-553.95284638,0.00025898,2]
[426436082,1782384639000,-171.85469268,0.00025066,2]
[426436106,1782384639000,-381.46748596,0.00025898,2]
[426436128,1782384639000,-508.07584237,0.00025898,2]
[426436038,1782384639000,-935.0,0.00024458,2]
[426436044,1782384639000,-192.43005069,0.00024968,2]
[426436046,1782384639000,-206.20286772,0.00025056,2]
[426436054,1782384639000,-341.23938495,0.00025056,2]
[426436056,1782384639000,-330.79390986,0.00025056,2]
[426436050,1782384639000,-367.9923907,0.00025056,2]
[426436048,1782384639000,-365.34119605,0.00025056,2]
[426436052,1782384639000,-356.93986815,0.00025056,2]
[426436042,1782384639000,-1215.67,0.00024888,7]
[426436062,1782384639000,-350.75793855,0.00025056,2]
[426436058,1782384639000,-151.61665966,0.00025056,2]
[426436060,1782384639000,-190.73374298,0.00025056,2]
[426436066,1782384639000,-154.37523111,0.00025056,2]
[426436064,1782384639000,-357.53928598,0.00025056,2]
[426436068,1782384639000,-198.17244508,0.00025056,2]
[426436080,1782384639000,-236.57001889,0.00025066,2]
[426436085,1782384639000,-337.92113148,0.00025066,2]
[426436074,1782384639000,-392.09733669,0.00025056,2]
[426436070,1782384639000,-369.30189759,0.00025056,2]
[426436084,1782384639000,-211.05628814,0.00025066,2]
[426436087,1782384639000,-404.61644,0.00025394,2]
[426436072,1782384639000,-200.54967326,0.00025056,2]
[426436077,1782384639000,-340.82342062,0.00025066,2]
[426436089,1782384639000,-200.0,0.00025428,2]
[426436091,1782384639000,-217.84742457,0.00025774,3]
[426436075,1782384639000,-338.71722824,0.00025056,2]
[426436093,1782384639000,-225.65906331,0.00025808,2]
[426436105,1782384639000,-303.23331932,0.00025898,2]
[426436104,1782384639000,-496.19086479,0.00025898,2]
[426436133,1782384639000,-473.14003778,0.00025908,2]
[426436103,1782384639000,-511.85907743,0.00025898,2]
[426436131,1782384639000,-226.98404352,0.00025908,2]
[426436181,1782384639000,-400.56304747,0.00026459,2]
[426436183,1782384639000,-701.51587711,0.00026459,2]
[426436180,1782384639000,-198.16311345,0.00026459,2]
[426436184,1782384639000,-230.21285825,0.00026459,2]
[426436178,1782384639000,-454.84997898,0.00026459,2]
[426436186,1782384639000,-229.23931035,0.00026459,2]
[426436185,1782384639000,-715.07857196,0.00026459,2]
[426436196,1782384639000,-738.60379518,0.00026459,2]
[426436187,1782384639000,-285.92525505,0.00026459,2]
[426436197,1782384639000,-402.15966792,0.00026459,2]
[426436188,1782384639000,-297.17646819,0.00026459,2]
[426436198,1782384639000,-434.65303181,0.00026459,2]
[426436189,1782384639000,-488.71750578,0.00026459,2]
[426436193,1782384639000,-487.40244705,0.00026459,2]
[426436191,1782384639000,-594.51733524,0.00026459,2]
[426436190,1782384639000,-463.12569333,0.00026459,2]
[426436195,1782384639000,-458.55746196,0.00026459,2]
[426436194,1782384639000,-363.42995112,0.00026459,2]
[426436192,1782384639000,-392.64037979,0.00026459,2]
[426436199,1782384639000,-418.22247724,0.00026459,2]
[426436200,1782384639000,-554.49425611,0.00026459,2]
[426436204,1782384639000,-677.43445649,0.00026459,2]
[426436207,1782384639000,-406.06075245,0.0002647,2]
[426436206,1782384639000,-681.64684123,0.0002647,2]
[426436201,1782384639000,-231.69620458,0.00026459,2]
[426436205,1782384639000,-441.75228855,0.00026459,2]
[426436203,1782384639000,-784.19467338,0.00026459,2]
[426436202,1782384639000,-601.64901978,0.00026459,2]
[426436132,1782384639000,-177.53114353,0.00025908,2]
[426436182,1782384639000,-483.64801,0.00026459,2]
[426436176,1782384639000,-302.07166391,0.00026459,2]
[426436101,1782384639000,-551.98858606,0.00025898,2]
[426436177,1782384639000,-661.58781972,0.00026459,2]
[426436179,1782384639000,-572.20122894,0.00026459,2]
[426436135,1782384639000,-343.70938536,0.00025908,2]
[426436140,1782384639000,-497.58896629,0.00025938,2]
[426436139,1782384639000,-236.73726067,0.00025908,2]
[426436152,1782384639000,-394.21048024,0.00026459,2]
[426436141,1782384639000,-713.17,0.0002627,7]
[426436142,1782384639000,-195.23161638,0.00026289,3]
[426436151,1782384639000,-618.60860317,0.00026459,2]
[426436144,1782384639000,-224.84111168,0.00026368,2]
[426436145,1782384639000,-577.29015208,0.00026368,2]
[426436146,1782384639000,-467.31993667,0.00026368,2]
[426436147,1782384639000,-325.72128767,0.00026459,2]
[426436149,1782384639000,-270.35660849,0.00026459,2]
[426436165,1782384639000,-730.6823921,0.00026459,2]
[426436166,1782384639000,-348.27868424,0.00026459,2]
[426436143,1782384639000,-451.31812663,0.00026368,2]
[426436168,1782384639000,-205.71897818,0.00026459,2]
[426436173,1782384639000,-208.71710544,0.00026459,2]
[426436174,1782384639000,-293.38024879,0.00026459,2]
[426436167,1782384639000,-735.98478141,0.00026459,2]
[426436175,1782384639000,-259.1973397,0.00026459,2]
[426436172,1782384639000,-682.4787699,0.00026459,2]
[426436162,1782384639000,-352.67459047,0.00026459,2]
[426436164,1782384639000,-207.38344849,0.00026459,2]
[426436158,1782384639000,-347.86392188,0.00026459,2]
[426436156,1782384639000,-429.95468619,0.00026459,2]
[426436170,1782384639000,-225.05718808,0.00026459,2]
[426436154,1782384639000,-269.64533584,0.00026459,2]
[426436171,1782384639000,-713.87973631,0.00026459,2]
[426436169,1782384639000,-201.58988695,0.00026459,2]
[426436160,1782384639000,-225.45705522,0.00026459,2]
[426436262,1782384640000,-1023.71815485,0.00027862,2]
[426436252,1782384640000,-3562.0,0.00027458,2]
[426436256,1782384640000,-216.0,0.00027458,2]
[426436253,1782384640000,-1277.0,0.00027458,2]
[426436251,1782384640000,-179.22,0.000274,7]
[426436244,1782384640000,-180.6422618,0.00027397,2]
[426436248,1782384640000,-361.28452361,0.00027397,2]
[426436245,1782384640000,-722.56904721,0.00027397,2]
[426436247,1782384640000,-424.60234665,0.00027397,2]
[426436243,1782384640000,-296.39134668,0.00027397,2]
[426436242,1782384640000,-13310.21,0.00027397,10]
[426436263,1782384640000,-992.38172957,0.00027862,2]
[426436246,1782384640000,-212.30117333,0.00027397,2]
[426436259,1782384640000,-1096.02358815,0.00027862,2]
[426436278,1782384640000,-497.58896629,0.00028925,2]
[426436257,1782384640000,-935.0,0.00027458,2]
[426436254,1782384640000,-383.0,0.00027458,2]
[426436261,1782384640000,-1070.81960446,0.00027862,2]
[426436258,1782384640000,-500.0,0.000275,7]
[426436260,1782384640000,-1103.97717211,0.00027862,2]
[426436265,1782384640000,-1107.90569277,0.00027862,2]
[426436264,1782384640000,-1052.27381566,0.00027862,2]
[426436267,1782384640000,-1016.15168473,0.00027862,2]